bitfinex/quotes_SOLUSD_20241010
["timestamp","ask_amount","ask_price","bid_price","bid_amount"]
[1728528527171,7.1489,139.89,139.81,56.75424002]
[1728528527348,7.1489,139.89,139.84,20.94815647]
[1728528527668,7.1489,139.89,139.84,7.1506]
[1728528528454,0.25098,139.88,139.84,7.1506]
[1728528528653,0.25098,139.88,139.85,1.42989401]
[1728528530676,0.25098,139.88,139.84,7.1506]
[1728528534367,0.25098,139.88,139.85,1.42989185]
[1728528534578,0.25098,139.88,139.84,7.1506]
[1728528536262,0.25098,139.88,139.84,7.11941]
[1728528536687,0.25098,139.88,139.85,1.42989603]
[1728528537660,0.25098,139.88,139.84,7.11941]
[1728528537979,0.25098,139.88,139.85,1.42989421]
[1728528538559,0.25098,139.88,139.84,7.11941]
[1728528538960,0.25098,139.88,139.85,1.42989289]
[1728528539877,0.25098,139.88,139.83,17.8778]
[1728528540082,7.1496,139.87,139.83,17.8778]
[1728528540254,7.1496,139.87,139.83,25.0293]
[1728528542682,7.1496,139.87,139.83,17.8778]
[1728528543186,7.1503,139.86,139.81,42.206]
[1728528543486,7.1503,139.86,139.8,90.36412761]
[1728528543487,7.1511,139.84,139.8,90.36412761]
[1728528543661,7.1511,139.84,139.8,83.21112761]
[1728528543858,7.1506,139.85,139.8,90.36382761]
[1728528548770,0.12549,139.84,139.8,90.36382761]
[1728528548975,0.12549,139.83,139.8,83.21112761]
[1728528549374,0.12549,139.83,139.8,91.79450821]
[1728528550483,0.12549,139.83,139.8,65.32932761]
[1728528550671,7.27729,139.83,139.8,65.32932761]
[1728528553377,7.1525,139.81,139.8,65.32932761]
[1728528554489,22.5319461,139.82,139.8,65.32932761]
[1728528559690,15.3798461,139.82,139.8,65.32932761]
[1728528561498,15.2543561,139.82,139.8,86.27978408]
[1728528561795,15.2543561,139.82,139.81,1.43038638]
[1728528562179,15.2543561,139.82,139.8,87.7101304]
[1728528562898,15.2543561,139.82,139.8,72.48222761]
[1728528564877,15.2543561,139.82,139.8,73.91261885]
[1728528565077,24.027864,139.81,139.8,65.32932761]
[1728528565287,31.180364,139.81,139.8,65.32932761]
[1728528579207,7.1525,139.81,139.8,65.32932761]
[1728528580397,31.180364,139.81,139.8,65.32932761]
[1728528603727,7.1525,139.81,139.8,65.32932761]
[1728528604026,15.2543561,139.82,139.8,65.32932761]
[1728528604205,7.1525,139.81,139.8,65.32932761]
[1728528605421,31.180364,139.81,139.8,65.32932761]
[1728528606014,7.27799,139.81,139.8,65.32932761]
[1728528606328,31.054874,139.81,139.8,65.32932761]
[1728528607425,31.180364,139.81,139.8,65.32932761]
[1728528609929,7.40348,139.81,139.8,65.32932761]
[1728528618316,22.4063561,139.82,139.8,65.32932761]
[1728528623728,31.180364,139.81,139.8,65.32932761]
[1728528626033,7.40348,139.81,139.8,65.32932761]
[1728528628525,0.25098,139.81,139.8,65.32932761]
[1728528628730,22.4064561,139.82,139.8,65.32932761]
[1728528630339,15.2543561,139.82,139.8,65.32932761]
[1728528631823,15.2543561,139.82,139.81,20.95005647]
[1728528632545,15.2543561,139.82,139.81,44.79205624]
[1728528632846,7.1486,139.89,139.83,17.8788]
[1728528633146,7.1486,139.89,139.84,13.79755647]
[1728528633344,7.1486,139.89,139.83,31.67635647]
[1728528633929,7.1486,139.89,139.84,7.1509]
[1728528634938,0.25098,139.88,139.84,7.1509]
[1728528638355,7.39998,139.88,139.84,7.1509]
[1728528641838,7.39998,139.88,139.84,8.58073711]
[1728528643455,7.39998,139.88,139.84,7.1509]
[1728528643656,7.39998,139.88,139.84,8.58073617]
[1728528644448,7.39998,139.88,139.84,7.1509]
[1728528647254,7.39998,139.88,139.83,17.8788]
[1728528647460,0.25098,139.88,139.83,17.8788]
[1728528647662,7.15,139.86,139.83,17.8788]
[1728528649756,0.12549,139.86,139.8,98.68872761]
[1728528650059,7.1524,139.82,139.8,65.32932761]
[1728528654066,0.12549,139.81,139.8,65.32932761]
[1728528654769,17.99879,139.88,139.8,65.32932761]
[1728528654946,7.1511,139.84,139.8,72.48222761]
[1728528655267,0.25098,139.83,139.8,72.48222761]
[1728528656543,0.12549,139.83,139.81,1.43038149]
[1728528657855,7.40138,139.86,139.82,7.152]
[1728528658149,0.25098,139.84,139.81,8.58278149]
[1728528658362,7.1496,139.87,139.82,7.1519]
[1728528658543,7.1496,139.87,139.83,1.43004492]
[1728528659642,0.25098,139.86,139.83,1.43004492]
[1728528659847,0.25098,139.86,139.82,7.1519]
[1728528660747,0.12549,139.87,139.83,8.5814485]
[1728528662371,0.25098,139.87,139.83,7.1514]
[1728528662980,0.25098,139.87,139.84,1.42995213]
[1728528663270,7.149,139.88,139.84,8.58095213]
[1728528663657,7.149,139.88,139.84,7.151]
[1728528668669,7.149,139.88,139.82,13.79755647]
[1728528668670,31.176364,139.89,139.85,7.1504]
[1728528669159,31.176364,139.89,139.84,1.42984878]
[1728528669361,31.176364,139.89,139.84,8.58074878]
[1728528670177,31.176364,139.89,139.84,7.1509]
[1728528674469,7.149,139.88,139.84,7.1509]
[1728528675066,0.25098,139.87,139.83,17.8778]
[1728528675888,7.15,139.86,139.83,17.8778]
[1728528679166,0.12549,139.85,139.81,15.77]
[1728528679470,7.1512,139.84,139.8,90.36422761]
[1728528681964,0.12549,139.84,139.8,90.36422761]
[1728528682369,0.12549,139.84,139.8,65.32932761]
[1728528682570,0.12549,139.87,139.8,65.32932761]
[1728528682571,7.1516,139.83,139.8,65.32932761]
[1728528682778,0.12549,139.85,139.81,8.5829027]
[1728528683086,7.27579,139.86,139.81,8.5829027]
[1728528684387,7.27579,139.86,139.81,7.1525]
[1728528684690,0.12549,139.85,139.81,7.1525]
[1728528685187,7.27609,139.85,139.8,72.48222761]
[1728528685385,0.12549,139.84,139.8,72.48222761]
[1728528685875,7.27689,139.84,139.8,65.32932761]
[1728528686079,0.12549,139.82,139.8,65.32932761]
[1728528686375,0.12549,139.82,139.8,66.75974799]
[1728528686582,0.12549,139.82,139.8,65.32932761]
[1728528686808,7.1514,139.84,139.8,66.75974417]
[1728528686995,0.12549,139.83,139.8,65.32932761]
[1728528690502,0.12549,139.82,139.8,65.32932761]
[1728528691488,0.12549,139.82,139.8,66.75977425]
[1728528691983,0.12549,139.82,139.8,65.32932761]
[1728528693103,0.12549,139.82,139.8,66.75975348]
[1728528693404,0.12549,139.82,139.8,65.32932761]
[1728528695197,0.12549,139.82,139.8,66.75975086]
[1728528695399,17.8731,139.88,139.8,65.32932761]
[1728528695777,7.1517,139.83,139.8,65.32932761]
[1728528696690,0.25098,139.82,139.8,65.32932761]
[1728528698099,0.12549,139.82,139.8,65.32932761]
[1728528698301,17.8731,139.88,139.81,1.43041633]
[1728528698302,7.1506,139.85,139.81,1.43041633]
[1728528698509,7.151,139.84,139.8,72.48222761]
[1728528699005,0.12549,139.83,139.8,72.48222761]
[1728528700303,0.12549,139.83,139.81,1.43026448]
[1728528700482,23.776884,139.87,139.81,17.8809]
[1728528700685,23.776884,139.86,139.82,8.58186161]
[1728528700902,0.12549,139.85,139.82,8.58186161]
[1728528701287,30.927184,139.86,139.81,25.0333]
[1728528701608,7.1503,139.86,139.81,25.0333]
[1728528706789,7.1503,139.86,139.82,7.1518]
[1728528707107,7.1506,139.85,139.81,25.0333]
[1728528711712,7.27559,139.86,139.82,8.58192494]
[1728528711928,7.1485,139.89,139.84,7.1505]
[1728528712213,7.1485,139.89,139.85,1.42982382]
[1728528712922,7.149,139.88,139.85,1.42982382]
[1728528722424,0.12549,139.89,139.85,1.42982382]
[1728528722613,7.39948,139.89,139.85,8.58022382]
[1728528728831,7.39948,139.89,139.85,7.1504]
[1728528729332,7.39948,139.89,139.86,1.42970737]
[1728528730633,7.39948,139.89,139.86,1.42970252]
[1728528732421,7.39948,139.89,139.85,7.1504]
[1728528732829,7.39948,139.89,139.86,1.42970333]
[1728528733327,7.1474,139.91,139.87,7.1494]
[1728528733517,6.3216,139.93,139.88,1.42951452]
[1728528733720,7.1471,139.92,139.88,1.42951452]
[1728528734020,22.39242858,139.92,139.87,25.0215]
[1728528735639,15.24532858,139.92,139.88,8.57810688]
[1728528736231,22.39232858,139.92,139.88,8.57810688]
[1728528737938,22.39232858,139.92,139.88,7.1487]
[1728528738711,22.39232858,139.92,139.89,1.42940995]
[1728528740136,22.39232858,139.92,139.88,7.1487]
[1728528742446,15.24532858,139.92,139.89,1.42936627]
[1728528742741,15.24532858,139.92,139.88,7.1487]
[1728528744035,22.39232858,139.92,139.88,7.1487]
[1728528744236,22.39232858,139.92,139.89,1.42936661]
[1728528744641,22.39232858,139.92,139.88,7.1487]
[1728528749617,0.25098,139.91,139.84,17.8768]
[1728528749815,7.1496,139.87,139.83,7.1514]
[1728528750614,7.149,139.88,139.83,7.1514]
[1728528752330,7.149,139.88,139.84,7.1508]
[1728528752735,7.149,139.88,139.85,1.42981328]
[1728528757148,7.149,139.88,139.83,7.1513]
[1728528759647,0.12549,139.9,139.82,29.26075647]
[1728528759842,0.25098,139.88,139.84,25.0279]
[1728528760042,0.12549,139.9,139.84,25.0279]
[1728528761450,7.149,139.88,139.84,25.0279]
[1728528763753,7.149,139.88,139.84,17.8771]
[1728528771164,7.149,139.88,139.84,25.0281]
[1728528771465,39.70802858,139.92,139.85,1.42982018]
[1728528771871,7.1483,139.9,139.85,8.58012018]
[1728528773080,0.12549,139.89,139.85,8.58012018]
[1728528776890,7.1483,139.9,139.86,7.1499]
[1728528777069,7.1483,139.9,139.87,1.42956253]
[1728528777455,7.1474,139.91,139.87,7.1494]
[1728528778349,7.1474,139.91,139.85,13.79755647]
[1728528778550,7.1474,139.91,139.86,7.1499]
[1728528779048,0.12549,139.91,139.86,7.1499]
[1728528779249,0.25098,139.91,139.84,17.8771]
[1728528779446,7.1501,139.86,139.82,22.6152]
[1728528779666,30.210964,139.91,139.82,15.4632]
[1728528779975,7.1495,139.87,139.83,7.1515]
[1728528780770,7.1495,139.87,139.84,1.42989512]
[1728528781189,7.27449,139.88,139.84,1.42989512]
[1728528781847,7.15,139.87,139.82,22.6151]
[1728528782046,7.15,139.87,139.83,1.42989499]
[1728528782263,7.15,139.87,139.83,8.58129499]
[1728528782464,0.12549,139.88,139.83,8.58129499]
[1728528782670,7.27459,139.88,139.83,8.58129499]
[1728528783386,7.27459,139.88,139.83,7.1514]
[1728528783574,7.1496,139.87,139.83,7.1514]
[1728528784973,7.1505,139.85,139.81,17.8809]
[1728528787353,7.1505,139.85,139.81,25.0334]
[1728528790579,7.27649,139.84,139.8,65.32932761]
[1728528790967,0.12549,139.83,139.81,1.4302602]
[1728528795171,17.8716,139.89,139.82,7.1519]
[1728528795474,16.2761,139.9,139.82,7.1519]
[1728528795778,7.15,139.86,139.81,7.1524]
[1728528796081,7.15,139.86,139.82,1.43008476]
[1728528796673,7.15,139.86,139.81,7.1524]
[1728528797177,7.15,139.86,139.82,1.43002723]
[1728528799164,7.15,139.86,139.81,7.1524]
[1728528800089,0.12549,139.85,139.81,7.1524]
[1728528801793,7.27599,139.85,139.81,7.1524]
[1728528802089,7.27599,139.85,139.8,83.21112761]
[1728528802274,7.27599,139.85,139.8,90.36402761]
[1728528802971,16.2761,139.9,139.82,17.8795]
[1728528803178,6.1831,139.91,139.83,33.79755647]
[1728528803395,22.39232858,139.92,139.87,7.1492]
[1728528803694,22.39232858,139.92,139.88,1.42946298]
[1728528804683,0.25098,139.91,139.88,31.42946298]
[1728528808383,0.25098,139.91,139.88,30.0]
[1728528811483,7.39938,139.89,139.88,30.0]
[1728528817299,0.25098,139.89,139.88,30.0]
[1728528817479,0.25098,139.9,139.88,30.0]
[1728528817681,7.1475,139.91,139.88,30.0]
[1728528818876,7.1484,139.89,139.88,30.0]
[1728528819098,31.176264,139.89,139.88,30.0]
[1728528819304,7.40008,139.88,139.83,7.1513]
[1728528819490,7.40008,139.88,139.85,30.0]
[1728528819881,7.40008,139.88,139.86,1.42981687]
[1728528820906,7.40008,139.88,139.85,1.42981467]
[1728528824706,24.027864,139.88,139.82,25.0313]
[1728528825204,0.25098,139.88,139.82,25.0313]
[1728528825898,7.1511,139.84,139.8,72.48192761]
[1728528827406,7.1511,139.84,139.81,1.43022707]
[1728528827902,0.12549,139.84,139.81,1.43022707]
[1728528828411,0.12549,139.84,139.8,72.48192761]
[1728528828607,0.12549,139.85,139.81,1.43022291]
[1728528828810,0.12549,139.85,139.8,72.48192761]
[1728528829197,0.12549,139.85,139.8,65.32932761]
[1728528829393,0.12549,139.85,139.81,7.1524]
[1728528831594,7.27599,139.85,139.8,72.48222761]
[1728528834315,7.27599,139.85,139.81,1.43014559]
[1728528839114,7.27599,139.85,139.82,1.43013881]
[1728528839721,7.27599,139.85,139.8,72.48222761]
[1728528839894,7.151,139.84,139.8,65.32932761]
[1728528840292,7.151,139.84,139.8,72.48232761]
[1728528840711,0.12549,139.85,139.81,1.43015358]
[1728528840917,7.27599,139.85,139.81,1.43015358]
[1728528842323,7.27599,139.85,139.81,8.58255358]
[1728528843415,7.27599,139.85,139.81,7.1524]
[1728528844525,7.27599,139.85,139.8,72.48222761]
[1728528844909,0.12549,139.83,139.8,65.32932761]
[1728528846326,0.12549,139.83,139.81,1.4302595]
[1728528846808,0.12549,139.83,139.8,65.32932761]
[1728528847425,0.12549,139.83,139.81,1.43026407]
[1728528849133,0.12549,139.83,139.8,65.32932761]
[1728528851502,0.12549,139.83,139.81,1.43026004]
[1728528852323,7.1514,139.84,139.82,1.43025803]
[1728528852912,7.1514,139.84,139.8,72.48232761]
[1728528856438,7.1514,139.84,139.81,1.43018413]
[1728528858328,7.1514,139.84,139.82,1.43017493]
[1728528859742,7.1514,139.84,139.8,72.48232761]
[1728528867029,7.1514,139.84,139.81,1.43018382]
[1728528868047,7.1514,139.84,139.8,72.48232761]
[1728528870049,7.27799,139.81,139.8,65.32932761]
[1728528870219,7.1521,139.82,139.8,65.32932761]
[1728528870425,0.12549,139.82,139.8,65.32932761]
[1728528870929,7.27759,139.82,139.8,65.32932761]
[1728528882940,7.1525,139.81,139.8,65.32932761]
[1728528883347,7.40348,139.81,139.8,65.32932761]
[1728528899650,0.12549,139.82,139.8,65.32932761]
[1728528899957,7.27759,139.82,139.8,65.32932761]
[1728528900457,7.40348,139.81,139.8,65.32932761]
[1728528901456,7.27769,139.82,139.8,65.32932761]
[1728528904565,0.12549,139.82,139.8,65.32932761]
[1728528906467,7.27769,139.82,139.8,65.32932761]
[1728528908141,7.40348,139.81,139.8,65.32932761]
[1728528910769,31.180364,139.81,139.8,65.32932761]
[1728528915458,7.40348,139.81,139.8,65.32932761]
[1728528918757,31.180364,139.81,139.8,65.32932761]
[1728528922360,7.1525,139.81,139.8,65.32932761]
[1728528923679,31.180364,139.81,139.8,65.32932761]
[1728528927066,7.40348,139.81,139.8,65.32932761]
[1728528931083,31.180364,139.81,139.8,65.32932761]
[1728528937369,7.40348,139.81,139.8,65.32932761]
[1728528938677,7.152,139.82,139.8,65.32932761]
[1728528939883,15.2535584,139.83,139.8,65.32932761]
[1728528939884,15.2535584,139.83,139.81,1.43040383]
[1728528940091,15.2535584,139.83,139.8,65.32932761]
[1728528940284,22.4051584,139.83,139.81,1.43024487]
[1728528942072,22.4051584,139.83,139.8,65.32932761]
[1728528949282,7.152,139.82,139.8,65.32932761]
[1728528949486,7.1525,139.81,139.8,65.32932761]
[1728528949801,0.25098,139.82,139.8,95.32932761]
[1728528950106,22.4054584,139.83,139.81,1.43029094]
[1728528951779,22.4054584,139.83,139.8,65.32932761]
[1728528953895,15.2535584,139.83,139.8,65.32932761]
[1728528954097,15.2535584,139.83,139.81,1.43030757]
[1728528955185,15.2535584,139.83,139.8,72.48192761]
[1728528955387,15.2535584,139.83,139.8,65.32932761]
[1728528958596,22.4050584,139.83,139.8,65.32932761]
[1728528959575,15.2535584,139.83,139.8,65.32932761]
[1728528959776,15.2535584,139.83,139.81,1.43023724]
[1728528960813,15.2535584,139.83,139.8,65.32932761]
[1728528961191,15.2535584,139.83,139.81,1.43022936]
[1728528962507,15.2535584,139.83,139.81,31.43022936]
[1728528963310,15.2535584,139.83,139.81,38.58262936]
[1728528964194,15.2535584,139.83,139.81,37.1524]
[1728528964393,15.2535584,139.83,139.81,7.1524]
[1728528965110,15.2535584,139.83,139.8,90.36422761]
[1728528965489,15.2535584,139.83,139.81,1.43018536]
[1728528966513,15.2535584,139.83,139.8,90.36422761]
[1728528966892,15.2535584,139.83,139.81,1.43018603]
[1728528967195,15.2535584,139.83,139.8,90.36422761]
[1728528967393,15.2535584,139.83,139.81,31.43018625]
[1728528969416,15.2535584,139.83,139.81,1.43018625]
[1728528970302,15.2535584,139.83,139.8,90.36422761]
[1728528970513,15.2535584,139.83,139.81,8.58254886]
[1728528970816,15.2535584,139.83,139.81,38.58254886]
[1728528976717,15.2535584,139.83,139.81,30.0]
[1728528979423,15.2535584,139.83,139.81,31.43021613]
[1728528980129,15.2535584,139.83,139.81,1.43021613]
[1728528982313,15.2535584,139.83,139.81,1.43021679]
[1728528983130,15.2535584,139.83,139.81,38.58251679]
[1728528984203,15.2535584,139.83,139.82,7.152]
[1728528985003,15.2535584,139.83,139.82,27.152]
[1728528985226,15.2535584,139.83,139.82,55.80223748]
[1728528985421,7.148,139.9,139.86,7.1499]
[1728528985597,7.1481,139.9,139.84,30.75823748]
[1728528985800,7.1481,139.9,139.85,7.1504]
[1728528986806,7.1485,139.89,139.85,7.1504]
[1728528987425,7.1494,139.88,139.84,17.8764]
[1728528987612,7.1494,139.88,139.85,30.0]
[1728528987808,7.1494,139.88,139.84,17.8764]
[1728528988204,7.1494,139.88,139.85,1.42978171]
[1728528988527,7.1494,139.88,139.84,17.8764]
[1728528988714,7.1494,139.88,139.85,1.42979052]
[1728528990418,7.1494,139.88,139.84,17.8764]
[1728528991727,7.1494,139.88,139.85,1.42979081]
[1728528994607,0.12549,139.89,139.84,17.8764]
[1728528994806,7.1495,139.87,139.84,17.8764]
[1728528995110,7.1495,139.87,139.85,1.42979944]
[1728528995526,7.149,139.88,139.85,1.42979944]
[1728528998231,7.149,139.88,139.84,25.0274]
[1728529000130,7.149,139.88,139.85,1.42973989]
[1728529002542,7.149,139.88,139.84,25.0274]
[1728529004336,7.149,139.88,139.84,17.8764]
[1728529005431,0.12549,139.9,139.82,35.7684]
[1728529005633,7.1503,139.86,139.82,35.7684]
[1728529006514,7.1503,139.86,139.83,1.42991263]
[1728529008943,7.1503,139.86,139.82,42.9202]
[1728529009236,7.1503,139.86,139.83,1.42992442]
[1728529009535,7.1503,139.86,139.82,42.9202]
[1728529010634,0.12549,139.87,139.81,17.8807]
[1728529010815,0.25098,139.87,139.82,1.43007311]
[1728529011017,7.1501,139.86,139.82,7.1519]
[1728529013828,7.1501,139.86,139.83,1.42994238]
[1728529016243,7.1495,139.87,139.83,8.58124238]
[1728529016648,0.12549,139.88,139.83,8.58124238]
[1728529016821,7.27449,139.88,139.83,8.58124238]
[1728529017346,7.27409,139.89,139.85,7.1503]
[1728529017553,7.27409,139.89,139.86,1.4297012]
[1728529019527,7.27409,139.89,139.84,8.58051896]
[1728529021748,7.1486,139.89,139.84,1.42971896]
[1728529021943,7.1486,139.89,139.85,7.1504]
[1728529022127,7.1486,139.89,139.86,1.42964822]
[1728529023042,7.1486,139.89,139.87,1.42968012]
[1728529023247,7.1486,139.89,139.85,1.4296803]
[1728529024753,7.1486,139.89,139.84,7.1509]
[1728529025335,0.25098,139.89,139.83,17.8781]
[1728529025541,7.15,139.86,139.82,7.1519]
[1728529026352,7.15,139.86,139.83,1.42991469]
[1728529026529,7.1496,139.87,139.83,1.42991469]
[1728529032956,7.1496,139.87,139.82,7.1519]
[1728529033245,7.1496,139.87,139.83,3.8383723]
[1728529033456,7.1496,139.87,139.82,7.1519]
[1728529033634,7.1496,139.87,139.83,3.83838202]
[1728529033833,7.1496,139.87,139.82,7.1519]
[1728529034138,7.1496,139.87,139.83,5.26827541]
[1728529034434,7.1496,139.87,139.83,1.42987465]
[1728529036745,7.1496,139.87,139.82,7.1519]
[1728529036946,7.1496,139.87,139.83,3.8391571]
[1728529037261,7.1496,139.87,139.82,7.1519]
[1728529037462,7.1496,139.87,139.83,5.26909182]
[1728529037636,7.1496,139.87,139.83,1.42987501]
[1728529038759,7.1496,139.87,139.82,7.1519]
[1728529038952,7.1496,139.87,139.83,3.83929778]
[1728529039154,7.1496,139.87,139.82,7.1519]
[1728529039330,7.1496,139.87,139.83,3.83929712]
[1728529039534,7.1496,139.87,139.82,7.1519]
[1728529039756,7.1496,139.87,139.83,3.83935164]
[1728529039957,7.1496,139.87,139.82,7.1519]
[1728529040757,7.1496,139.87,139.83,3.83935164]
[1728529040943,7.1496,139.87,139.82,7.1519]
[1728529041260,7.1496,139.87,139.83,3.83980192]
[1728529041433,7.1496,139.87,139.82,7.1519]
[1728529041630,7.1496,139.87,139.83,3.83984049]
[1728529041962,7.1496,139.87,139.82,7.1519]
[1728529042256,7.1496,139.87,139.83,3.84000233]
[1728529042458,7.1496,139.87,139.82,7.1519]
[1728529042767,7.1496,139.87,139.83,3.84004305]
[1728529042948,7.1496,139.87,139.82,7.1519]
[1728529043262,7.1496,139.87,139.83,5.26991956]
[1728529043462,7.1496,139.87,139.83,1.42987584]
[1728529044433,7.1496,139.87,139.83,8.58137584]
[1728529045762,7.1496,139.87,139.83,7.1515]
[1728529046163,7.1496,139.87,139.84,1.42984525]
[1728529046656,7.1496,139.87,139.83,7.1515]
[1728529051768,7.15,139.86,139.82,25.0312]
[1728529051949,7.15,139.86,139.83,3.83962189]
[1728529052152,7.15,139.86,139.82,25.0312]
[1728529052451,7.15,139.86,139.83,3.83962322]
[1728529052651,7.15,139.86,139.82,25.0312]
[1728529052866,7.15,139.86,139.83,3.83995941]
[1728529053166,7.1507,139.85,139.81,23.3276]
[1728529053361,7.1507,139.85,139.82,3.84012914]
[1728529053567,7.1507,139.85,139.81,27.1525]
[1728529053872,7.1507,139.85,139.83,1.43005314]
[1728529054763,7.1501,139.86,139.82,1.43004116]
[1728529056563,7.27449,139.88,139.84,8.58062422]
[1728529056745,7.149,139.88,139.84,1.42982422]
[1728529057663,7.149,139.88,139.84,7.151]
[1728529058557,7.149,139.88,139.84,8.58080042]
[1728529060766,7.149,139.88,139.84,7.151]
[1728529060958,7.149,139.88,139.85,1.42979777]
[1728529061144,7.149,139.88,139.84,7.151]
[1728529061768,7.1494,139.87,139.83,25.0299]
[1728529064253,7.1494,139.87,139.84,1.42982415]
[1728529065550,7.1491,139.88,139.84,1.42982415]
[1728529073169,7.1491,139.88,139.83,25.0299]
[1728529074369,7.1491,139.88,139.84,1.42980482]
[1728529076374,7.1486,139.89,139.85,1.42980432]
[1728529076959,7.39898,139.9,139.86,7.1499]
[1728529077182,7.39898,139.9,139.87,1.42962955]
[1728529077975,7.27349,139.9,139.87,1.42962955]
[1728529078200,7.148,139.9,139.88,1.42964015]
[1728529078665,7.148,139.9,139.88,1.42956033]
[1728529079278,7.148,139.9,139.86,7.1499]
[1728529082365,7.148,139.9,139.87,1.42956745]
[1728529083496,7.148,139.9,139.86,7.1499]
[1728529084790,7.148,139.9,139.87,1.4295659]
[1728529087501,7.148,139.9,139.85,25.0262]
[1728529087897,7.148,139.9,139.86,1.42956553]
[1728529088806,7.148,139.9,139.85,25.0262]
[1728529089296,7.148,139.9,139.86,1.42956667]
[1728529091385,7.148,139.9,139.85,25.0262]
[1728529092276,7.148,139.9,139.85,26.45576746]
[1728529092802,7.148,139.9,139.85,25.0262]
[1728529095002,7.148,139.9,139.86,1.42956879]
[1728529096984,7.148,139.9,139.85,25.0262]
[1728529097507,7.148,139.9,139.86,1.42956731]
[1728529098005,7.148,139.9,139.85,25.0262]
[1728529100510,7.1485,139.89,139.85,17.8758]
[1728529100677,7.1493,139.88,139.83,20.0]
[1728529100882,7.1493,139.88,139.84,42.41773309]
[1728529101083,7.1493,139.88,139.84,38.58050343]
[1728529102021,7.1493,139.88,139.84,8.58050343]
[1728529107006,7.1493,139.88,139.84,7.1508]
[1728529107407,7.1493,139.88,139.85,1.42969486]
[1728529107610,7.1493,139.88,139.84,7.1508]
[1728529109908,7.1493,139.88,139.85,1.42969292]
[1728529111613,7.1493,139.88,139.84,7.1508]
[1728529111815,7.1493,139.88,139.85,1.42969793]
[1728529112105,0.25098,139.9,139.85,1.42969793]
[1728529112331,7.1486,139.89,139.85,1.42969793]
[1728529114822,7.1486,139.89,139.85,8.58019793]
[1728529117608,7.1476,139.91,139.86,7.1496]
[1728529117811,7.1476,139.91,139.87,1.42943261]
[1728529118016,7.1476,139.91,139.87,8.57883261]
[1728529118198,31.54225997,139.96,139.88,7.1489]
[1728529118397,7.1471,139.92,139.89,1.42937084]
[1728529118598,22.39037451,139.92,139.89,1.42937084]
[1728529119013,15.24327451,139.92,139.89,1.42937084]
[1728529119210,7.1474,139.91,139.87,7.1493]
[1728529120621,7.1474,139.91,139.88,1.42940234]
[1728529120916,7.1474,139.91,139.87,7.1493]
[1728529121221,7.1474,139.91,139.86,25.0243]
[1728529124218,7.1485,139.89,139.86,17.8745]
[1728529124401,15.24327451,139.92,139.86,20.0]
[1728529124596,7.148,139.9,139.86,20.0]
[1728529125920,15.24327451,139.92,139.87,1.42945982]
[1728529126220,7.1475,139.91,139.87,1.42945982]
[1728529127321,7.1475,139.91,139.87,8.57885982]
[1728529128215,7.1475,139.91,139.87,1.42945982]
[1728529129322,7.1475,139.91,139.86,40.02497946]
[1728529129533,7.1475,139.91,139.86,27.1499]
[1728529130917,7.148,139.9,139.87,1.42940083]
[1728529132924,7.148,139.9,139.86,27.1499]
[1728529133211,15.24327451,139.92,139.86,20.0]
[1728529133432,15.24327451,139.92,139.87,1.42950857]
[1728529133433,7.1488,139.89,139.87,1.42950857]
[1728529134123,7.1488,139.89,139.86,20.0]
[1728529134816,7.1488,139.89,139.86,21.42952295]
[1728529136119,7.1488,139.89,139.86,20.0]
[1728529137114,7.1488,139.89,139.85,33.9715]
[1728529137524,15.24327451,139.92,139.86,5.32656413]
[1728529137525,7.149,139.88,139.86,5.32656413]
[1728529137706,7.149,139.88,139.85,20.0]
[1728529137906,7.149,139.88,139.86,6.75623549]
[1728529138205,7.149,139.88,139.86,1.42960921]
[1728529139317,7.149,139.88,139.85,20.0]
[1728529140414,7.1499,139.87,139.83,20.0]
[1728529140616,7.1501,139.86,139.84,3.83041948]
[1728529140919,7.1501,139.86,139.82,54.51877946]
[1728529141128,7.1501,139.86,139.83,3.83044317]